Cogmind - Beta 9.6 @@@ ROGUE MODE // 2020.07.06 @ 12:58:53 Player: Granite Result: Destroyed by G-34 Mercenary with Small Laser Performance ------------- Evolutions (1) 500 Regions Visited (2) 400 Robots Destroyed (13) 65 Value Destroyed (297) 297 Prototype IDs (3) 60 Alien Tech Used (0) 0 Bonus (0) 0 TOTAL SCORE: 1322 Bonus ------- None Cogmind --------- Core Integrity 0/400 Matter 261/300 Energy 195/240 System Corruption 0% Temperature Cool (6) Movement Walking (150) Ox1 Location -9/Materials Parts ------- > --- POWER (1) -------- Nuclear Core > --- PROPULSION (3) --- Aluminum Leg > --- UTILITY (2) ------ Visual Processing Unit Light Armor Plating > --- WEAPON (3) ------- Electrolaser Electrolaser Electrolaser > --- INVENTORY (4) ---- Heat Sink Small Storage Unit Peak State ------------ > --- POWER ------------ Nuclear Core > --- PROPULSION ------- Aluminum Leg > --- UTILITY ---------- Visual Processing Unit Light Armor Plating > --- WEAPON ----------- Electrolaser Electrolaser Electrolaser > --- INVENTORY -------- Heat Sink Small Storage Unit [Rating: 16] Favorites ----------- Power Nuclear Core Engine Improved Ion Engine Power Core Nuclear Core Propulsion Wheel Leg Aluminum Leg Wheel Wheel Utility Visual Processing Unit Device Cooling System Storage Small Storage Unit Processor Visual Processing Unit Protection Light Armor Plating Weapon Autogun Energy Gun Small Laser Ballistic Gun Autogun Special Weapon Welding Torch Build | -11 -10 -9 ------- Run | Scr Mat Mat Slots Evolved 2 | . . 2 Power . | . . . Propulsion 1 | . . 1 Utility . | . . . Weapon 1 | . . 1 Parts Attached 25 | 6 4 15 Power 5 | 1 1 3 Engine 2 | 1 1 . Core 3 | . . 3 Reactor . | . . . Propulsion 3 | 2 . 1 Treads . | . . . Leg 1 | . . 1 Wheel 2 | 2 . . Hover . | . . . Flight . | . . . Utility 5 | 1 1 3 Device 2 | . . 2 Storage 1 | 1 . . Processor 1 | . 1 . Hackware . | . . . Protection 1 | . . 1 Artifact . | . . . Weapon 12 | 2 2 8 Energy Gun 9 | 2 1 6 Energy Cannon . | . . . Ballistic Gun 2 | . 1 1 Ballistic Cannon . | . . . Launcher . | . . . Special Weapon 1 | . . 1 Impact Weapon . | . . . Slashing Weapon . | . . . Piercing Weapon . | . . . Special Melee Weapon . | . . . Unidentified Prototypes . | . . . Parts Lost 14 | . 1 13 Power 2 | . . 2 Propulsion 2 | . . 2 Utility 2 | . . 2 Weapon 8 | . 1 7 Highest Loss Streak 11 | . 1 11 Average Slot Usage (%) 75 | . 96 64 Engine 5 | . 14 . Core 6 | . . 10 Leg 1 | . . 2 Wheel 16 | . 28 9 Device 1 | . . 2 Storage 8 | . 14 5 Processor 10 | . 10 11 Protection 1 | . . 2 Energy Gun 14 | . 17 12 Ballistic Gun 7 | . 10 5 Naked Turns . | . . . Heaviest Build 19 | 10 16 19 Greatest Support 20 | 20 20 20 Greatest Overweight (x) 4 | . . 4 Average Overweight (x) . | . . . Largest Inventory Capacity 6 | 6 6 6 Average Capacity 5 | 5 6 5 Most Carried 6 | 3 6 6 Average Carried 4 | 1 5 3 Final Capacity 6 | 6 6 4 Final Carried 5 | 2 5 2 Class Distribution -------------------- 70% | Mutant 29% | Skirmisher Dominant Class ---------------- Mutant | -10/Materials Mutant | -9/Materials Resources | -11 -10 -9 ----------- Run | Scr Mat Mat Matter Collected 503 | 203 164 136 Remotely . | . . . Salvage Created 450 | . 93 357 Parts 31 | . 10 21 Haulers Intercepted . | . . . Recyclers Shooed 2 | . . 2 Parts Field Recycled . | . . . Retrieved Matter . | . . . Parts Self-Destructed . | . . . Prevented . | . . . Kills | -11 -10 -9 ------- Run | Scr Mat Mat Combat Hostiles Destroyed 9 | . 2 7 Guns 7 | . 2 5 Cannons 1 | . . 1 AOE 1 | . . 1 Classes Destroyed 7 | . 2 5 Worker 1 | . . 1 Builder 1 | . . 1 Recycler 1 | . . 1 Watcher 1 | . 1 . Swarmer 2 | . . 2 Grunt 6 | . 2 4 Sentry 1 | . . 1 Best Kill Streak 7 | . 2 7 Combat Bots Only 4 | . 2 4 Max Kills in Single Turn 2 | . 1 2 Gunslinging 1 | . . 1 Exploded 1 | . . 1 Melee . | . . . Uniques/NPCs Destroyed . | . . . Combat | -11 -10 -9 -------- Run | Scr Mat Mat Damage Taken 1414 | . 196 1218 Core 437 | . 31 406 Absorbed by Shields 58 | . . 58 Core Remaining (%) 93 | 100 87 . Volleys Fired 61 | . 22 39 Largest 3 | . 2 3 Hottest 189 | . 90 189 Shots Fired 102 | . 40 62 Gun 91 | . 40 51 Cannon . | . . . Launcher . | . . . Special 11 | . . 11 Kinetic 41 | . 21 20 Thermal 50 | . 19 31 Explosive . | . . . Electromagnetic 11 | . . 11 Robot Hit Streak 8 | . 5 8 Robot Miss Streak 4 | . 3 4 Penetration Max . | . . . Secondary Targets 1 | . . 1 Max Gunslinging Chain 1 | . . 1 Shots Hit Robots 63 | . 25 38 Core Hits 26 | . 7 19 Critical Hits . | . . . Critical Kills . | . . . Critical Parts Destroyed . | . . . Melee Attacks . | . . . Impact . | . . . Slashing . | . . . Piercing . | . . . Sneak Attacks . | . . . Combat Hostiles . | . . . Follow-up Attacks . | . . . Damage Inflicted 1064 | . 375 689 Guns 864 | . 375 489 Cannons . | . . . Explosions 172 | . . 172 Melee . | . . . Ramming 3 | . . 3 Kinetic 376 | . 190 186 Thermal 581 | . 185 396 Explosive . | . . . Electromagnetic 104 | . . 104 Impact . | . . . Slashing . | . . . Piercing . | . . . Highest Corruption . | . . . Average Corruption . | . . . Corruption Purged . | . . . Overload Shots . | . . . Overflow Damage 6 | . . 6 Projectiles . | . . . Explosions 6 | . . 6 Melee . | . . . Knockbacks . | . . . Impact . | . . . Kinetic . | . . . Secondary . | . . . Self-Inflicted Damage 37 | . . 37 Shots 1 | . . 1 Rammed 1 | . . 1 Targets Rammed 1 | . . 1 Kicked . | . . . Crushed . | . . . Highest Temperature 344 | . 197 344 Average Temperature 115 | . 68 172 Received Heat Transfer 532 | . 108 424 Siege Activations . | . . . Robots Corrupted . | . . . Combat Hostiles . | . . . Parts Fried . | . . . Impact Corruptions . | . . . Robots Melted . | . . . Combat Hostiles . | . . . Parts Melted 1 | . . 1 Heat Transferred 1465 | . 543 922 Parts Sabotaged . | . . . Parts Stolen . | . . . Parts Stripped . | . . . Power Chain Reactions 1 | . . 1 Missiles Intercepted . | . . . Alert | -11 -10 -9 ------- Run | Scr Mat Mat Peak Influence 113 | . 56 113 Average Influence 47 | . 25 67 Maximum Alert Level . | . . . Low Security (%) 100 | 100 100 100 Level 1 . | . . . Level 2 . | . . . Level 3 . | . . . Level 4 . | . . . Level 5 . | . . . High Security . | . . . Max Security . | . . . Squads Dispatched 3 | . 1 2 Investigation 2 | . 1 1 Extermination . | . . . Reinforcement 1 | . . 1 Assault . | . . . Garrison . | . . . Intercept . | . . . Construction Impeded . | . . . Haulers Reinforced . | . . . Stealth | -11 -10 -9 --------- Run | Scr Mat Mat Distress Signals 3 | . 1 2 Communications Jammed . | . . . Distress Signals . | . . . Times Spotted 18 | . 4 14 Peak Tracking Total 8 | . 3 8 Tactical Retreats 4 | . 2 2 Traps | -11 -10 -9 ------- Run | Scr Mat Mat Traps Triggered 1 | . 1 . Indirectly . | . . . Trap Hack Attempts . | . . . Triggered . | . . . Disarmed . | . . . Reprogrammed . | . . . Reused . | . . . Traps Extracted . | . . . Installed . | . . . Triggered . | . . . Machines | -11 -10 -9 ---------- Run | Scr Mat Mat Machines Disabled . | . . . Max in Single Turn . | . . . Machines Sabotaged . | . . . Garrisons Compromised . | . . . Overloaded Fab Kills . | . . . Fab Network Shutdowns . | . . . Hacking | -11 -10 -9 --------- Run | Scr Mat Mat Machines Accessed 4 | . 2 2 Terminals 4 | . 2 2 Fabricators . | . . . Repair Stations . | . . . Recycling Units . | . . . Scanalyzers . | . . . Garrison Access . | . . . Total Hacks 11 | . 5 6 Successful 5 | . 3 2 Failed 6 | . 2 4 Catastrophic 2 | . 1 1 Database Lockouts . | . . . Manual 6 | . 1 5 Terminals 11 | . 5 6 Fabricators . | . . . Repair Stations . | . . . Recycling Units . | . . . Scanalyzers . | . . . Garrison Access . | . . . Terminal Hacks 4 | . 3 1 Robot Analysis 1 | . 1 . Prototype ID Bank 2 | . 2 . Locate Traps 1 | . . 1 Fabricator Hacks . | . . . Repair Station Hacks . | . . . Recycling Unit Hacks . | . . . Scanalyzer . | . . . Garrison Access Hacks . | . . . Unauthorized Hacks 1 | . . 1 Terminals 1 | . . 1 Botnet 1 | . . 1 Fabricators . | . . . Repair Stations . | . . . Recycling Units . | . . . Scanalyzers . | . . . Garrison Access . | . . . Data Cores Recovered . | . . . Used . | . . . Hacking Detections 4 | . 2 2 Full Trace Events 2 | . 1 1 Feedback Events . | . . . Feedback Blocked . | . . . Robot Schematics Acquired . | . . . Robots Built . | . . . Matter . | . . . Time . | . . . Total Robot Build Rating . | . . . Part Schematics Acquired . | . . . Parts Built . | . . . Matter . | . . . Time . | . . . Total Part Build Rating . | . . . Parts Repaired . | . . . Time . | . . . Parts Recycled . | . . . Recycled Matter . | . . . Retrieved Matter . | . . . Retrieved Components . | . . . Parts Scanalyzed . | . . . Part Schematics Acquired . | . . . Parts Damaged . | . . . Bothacking | -11 -10 -9 ------------ Run | Scr Mat Mat Used RIF Installer . | . . . Robots Hacked . | . . . Non-combat . | . . . Combat . | . . . Robot Hacks Applied . | . . . Relay Couplers Released . | . . . Robots Rewired . | . . . Allies Hacked . | . . . Hacks Repelled . | . . . Allies | -11 -10 -9 -------- Run | Scr Mat Mat Total Allies . | . . . Largest Group . | . . . Highest-Rated Group . | . . . Highest-Rated Ally . | . . . Total Orders . | . . . Ally Attacks . | . . . Total Damage . | . . . Kills . | . . . Allies Corrupted . | . . . Allies Melted . | . . . Intel | -11 -10 -9 ------- Run | Scr Mat Mat Robot Analysis Total 1 | . 1 . Derelict Logs Recovered . | . . . Drone Launches . | . . . Drone Recoveries . | . . . Exploration | -11 -10 -9 ------------- Run | Scr Mat Mat Turns Passed 679 | 55 228 396 Spaces Moved 495 | 51 200 244 Core 26 | 7 . 19 Treads . | . . . Legs 74 | . . 74 Wheels 395 | 44 200 151 Hover . | . . . Flight . | . . . Fastest Speed 50 | 50 80 50 Average Speed 89 | 75 80 99 Slowest Speed 250 | 80 80 250 Overloaded Moves . | . . . Propulsion Burnouts . | . . . Robots Hopped . | . . . Cave-ins Triggered . | . . . Exploration Rate (%) 21 | 3 41 19 Regions Visited 2 Branch Regions . Pre-discovered Areas . | . . . Known Exits Taken . | . . . Unknown Exits Taken 2 | 1 1 . Scrap Searched . | . . . Spaces Dug . | . . . Terrain Destroyed 3 | . . 3 Melee . | . . . Projectile . | . . . AOE 3 | . . 3 Actions | -11 -10 -9 --------- Run | Scr Mat Mat Total 640 | 67 230 343 Wait 31 | 3 . 28 Move 493 | 50 199 244 Hop . | . . . Pick Up 26 | 8 5 13 Fast Attach . | . . . Attach 21 | 6 2 13 Detach . | . . . Swap 4 | . 2 2 Drop 3 | . . 3 Fire 61 | . 22 39 Melee . | . . . Ram 1 | . . 1 Kick . | . . . Crush . | . . . Escape Stasis . | . . . Rewire . | . . . Trap . | . . . Miscellaneous . | . . . Route ------- -11/Scrapyard -10/Materials -9/Materials History --------- Turn | Location | Event 41 | -11/Scrapyard | Discovered new exit (range 12) 56 | -11/Scrapyard | Entered Materials 227 | -10/Materials | Discovered new exit (range 18) 284 | -10/Materials | Entered another Materials area 284 | -9/Materials | Evolved 2 slots: Propulsion x1, Weapon x1 520 | -9/Materials | Core integrity fell below 50% 559 | -9/Materials | Core integrity fell below 20% 568 | -9/Materials | Lost 11 parts (2p2n1u6w) 680 | -9/Materials | Destroyed by G-34 Mercenary with Small Laser Last Messages --------------- 00535_ Acquired Welding Torch. 00535_ Hvy. Assault Rifle destroyed. 00537_ K-01 Serf collects debris. 00537_ Cooling System destroyed. 00538_ R-06 Scavenger collects Aluminum Leg. 00538_ K-01 Serf collects debris. 00541_ Acquired 6 matter. 00545_ K-01 Serf collects debris. 00556_ S-10 Pest destroyed. 00558_ K-01 Serf collects debris. 00561_ Acquired 42 matter. 00561_ K-01 Serf collects debris. 00572_ Shield Generator destroyed. 00574_ Welding Torch destroyed. 00579_ Acquired Aluminum Leg. 00582_ Acquired Lgt. Armor Plating. 00584_ Acquired 34 matter. 00589_ Acquired Heat Sink. 00609_ K-01 Serf collects debris. 00668_ Acquired Electrolaser. Map ----- +----------------------------------------------------+ | ???????????????############## """ """ #######?? | | ???????????????# """ =# """ """ "#??????? | | ???????????????# ""R" """ # """ """ T#??????? | | ???????????????# "" " """ # "#??????? | | ???????????????# """ # ##??????? | | ???????????????# = # """ """ ####????? | | ???????????????#########+#### """ """ """#????? | | ?????????????????????# ## """ """ T"#????? | | ?????????????????????# # """#????? | | ?????????????????????# # ####????? | | ?????????????????????# # #???????? | | ?????????????????????# # ####"T"####???????? | | ?????????????????????### ### #??#####??????????? | | ??????????????########## #?# #?????????????????? | | ??????????????# ## #?# #?????????????????? | | ??????????????# ## #?# #?????????????????? | | ??????????????# """"" ## #?# #?????????????????? | | ??????????????# """"" ## ### #?????????????????? | | ??????????????# """"" # #?????????????????? | | ??????????????# *+ #?????????????????? | | ??????????????# """"" # #?????????????????? | | ??????????????# """"" # #### #?????????????????? | | ??????????????# """"" # #??# #?????????????????? | | ??????????????# # #??#####?????????????????? | | ??????????????# # ######???????????????????? | | ??????????????#########*g@ #???????????????????? | | ??????????????????????#* !!#???????????????????? | | ??????????????????????#* !!#???????????????????? | | ??????????????????????########???????????????????? | | ?????????????????????????????????????????????????? | | | | | | | | | | | | | | | | | | | | | | | | | | | | | | | | | | | | | | | | | +----------------------------------------------------+ Best States ------------- Heat Dissipation 50 Energy Generation 14 Energy Capacity 265 Matter Stores 300 Matter Capacity 300 Sight Range 18 Terrain Scan Density 10 Armor Coverage 150 Evasion (%) 44 Item Schematics ----------------- None Robot Schematics ------------------ None Fabricated ------------ Nothing Alien Tech Used ----------------- None Achievements -------------- None Challenges ------------ None Game ------ Seed UtilityManeuveringBlaster Manual? 0 Play Time 00:11:16 Cumulative 26.2 hours Start 2020.07.06 @ 11:21:09 End 2020.07.06 @ 12:58:53 Sessions 2 Manual Loads 0 Difficulty Rogue Special Mode None Game No. 21 Rogue 21 Adventurer 0 Explorer 0 Win Type - Total 0 Types 0/0/0/0/0/0/0 Lore% 31 Gallery% 30 Achievement% 27 Wizard Run 0 Options --------- ASCII 0 Keyboard 0 Movement Mouse Keybinds 0 Fullscreen 1 Font 24/Smallcaps Map View 76x50 Tactical HUD 1 Map Filters NONE Filters NONE Steam 1 RUN: a37e2cf5-a8ed-487d-ace5-3aa17b49d456